Workbook

Sheet Menu
A9: Base de cálculos trabalhistas - Comércio do estado de São Paulo
A31: Planilha+ 5.1.2 .:. Acácio Jr .:. unico@acaciojunior.com - Última atualização: 03/02/2016

Sheet menu_exp
A9: Cálculo de rescisão de contrato de experiência
A24: =Menu!A31 -> Planilha+ 5.1.2 .:. Acácio Jr .:. unico@acaciojunior.com - Última atualização: 03/02/2016
A25: Único Company .:. Acácio Jr .:. Fecomerciários

Sheet mascara
N1: Base de cálculo demissional | W1: sim ou não | X1: afastamento
W2: sim | X2: Dispensa sem justa causa
N3: =config!I101 -> FECOMERCIÁRIOS | W3: não | X3: Pedido de demissão
B6: Motivo do Afastamento: | Q6: =IF(H6="Pedido de demissão",IF(H10>0,IF(H12>0,"Dias de aviso cumprido:",""),""),"") ->  | S6: =IF(H6="Pedido de demissão",IF(H10>0,IF(H12>0,H12-H10,""),""),"") -> 
B8: Admissão: | K8: dd/mm/aaaa (data do registro na carteira) | T8: =IF(H6="",0,H12-H10) -> 0
G10: Data do aviso: | K10: dd/mm/aaaa | N10: =IF(P10="","",IF(H6="Dispensa sem justa causa","Direito á","")) ->  | P10: =IF(H6="Dispensa sem justa causa",IF(H8>0,IF(H10>0,IF(calculo!AI8+30<=90,calculo!AI8+30,90),""),""),"") ->  | Q10: =IF(P10="","",IF(H6="Dispensa sem justa causa","dias de aviso prévio (trabalhado ou indenizado)","")) -> 
B12: Data do último dia trabalhado: | K12: dd/mm/aaaa | N12: =IF(H6="Dispensa sem justa causa",IF(H8>0,IF(H10>0,IF(H12>0,IF(T12>0,"Aviso prévio restante será indenizado",IF(T12<0,"Erro de procedimento, excedeu dias no aviso prévio.","")),""),""),""),"") ->  | T12: =IF(H6="Dispensa sem justa causa",IF(H8>0,IF(H10>0,IF(H12>0,(calculo!AI8+30)-T8,""),""),""),"") -> 
B14: Salário: | L14: bruto | Q14: =IF(H12>0,IF(H12<H10,"Data de saída inferior a data de aviso",""),"") -> 
B16: Possui uma férias vencidas: | K16: =IF(H8>0,IF(H10>0,IF(H16="sim",IF(calculo!AJ8>=1,"","Atenção: Não há férias vencidas"),""),""),"") -> 
B17: =IF(H8>0,IF(H10>0,IF(H12>0,IF(calculo!O24=12,"Atenção: Última férias recentemente vencida ja está sendo computada no cálculo",IF(H8>0,IF(H10>0,IF(H12>0,IF(calculo!O24=0,"Atenção, há uma férias recentemente vencida, verificar a necessidade de selecionar o ítem - férias vencidas",""),""),""),"")),""),""),"") -> 
B19: *Preencher o valor já incluindo o DSR quando houver.
B20: Outras Verbas: | K20: Incide INSS e IRPF? | O20: Descontos:
B22: Média de salário para cálculo de FGTS:
B26: Empresa:
B28: Trabalhador:
B31: Nº dependentes no Imposto de renda: | P31: =IF(config!Z19="sim","Maior de","") -> Maior de | Q31: =IF(config!Z19="sim",config!Z20,"") -> 50 | R31: =IF(config!Z19="sim","anos de idade","") -> anos de idade | S31: não
B35: Nº de filhos com salário famlía: | K35: Número de filhos menores de 14 anos, para salários até: | S35: =config!F91 -> 1212.64
A41: =Menu!A31 -> Planilha+ 5.1.2 .:. Acácio Jr .:. unico@acaciojunior.com - Última atualização: 03/02/2016

Sheet calculo
D1: =config!I101 -> FECOMERCIÁRIOS | AF1: Único Company .:. Acácio Jr .:. Fecomerciários
D2: =config!I102 -> Federação dos Empregados no Comércio do Estado de São Paulo
D4: =config!J103 -> Rua dos Pinheiros, nº 20 - Pinheiros | AC4: =config!H104 -> (11) 3060 6600 | AH4: Multa Data Base | AI4: =IF(K8="Dispensa sem justa causa",IF(Z11<DATE(YEAR(Z11),config!AD103,config!AB103),IF(Z11>=DATE(YEAR(Z11),config!AD103,config!AB103)-30,H12,0),0),0) -> 0
D5: Base de cálculo demissional | AH5: Projeção pedido de demissão | AI5: =Q10+30 -> 1900-01-30
D6: =IF(mascara!E26="","","Empresa:") ->  | G6: =IF(mascara!E26="","",mascara!E26) ->  | AH6: saldo de dias trabalhados | AI6: =IF(MONTH(Z10)=MONTH(G10),IF(YEAR(Z10)=YEAR(G10),DAY(Z10)-DAY(G10),DAY(Z10)),DAY(Z10)) ->  | AJ6: Total de dias trabalhados | AK6: =IF(MONTH(Z10)=MONTH(G10),IF(YEAR(Z10)=YEAR(G10),DAY(Z10)-DAY(G10)+1,DAY(Z10)),DAY(Z10)) ->  | AL6: Fevereiro | AM6: =IF(MONTH(Z10)=2,AO6,0) ->  | AN6: =Z10+1 ->  | AO6: =IF(MONTH(Z10)=MONTH(AN6),0,30) -> 
D7: =IF(mascara!E28="","","Trabalhador:") ->  | H7: =IF(mascara!E28="","",mascara!E28) ->  | AH7: Data projeção do aviso | AI7: =IF(K8="Dispensa sem justa causa",mascara!H10+mascara!P10,Z10)+AM11+AP8 ->  | AJ7: =IF(K8="Dispensa sem justa causa",Q10+30,Z10) ->  | AK7: =AJ7-1 ->  | AL7: =IF(AM7<=0,DAY(AJ7)-DAY(G10),0) ->  | AM7: =MONTH(AK7)-MONTH(G10) ->  | AN7: =IF(AM7<0,1,IF(AL7<0,1,0)) -> 
D8: Motivo do Afastamento: | K8: =mascara!H6 -> 0 | AH8: Anos trabalhados | AI8: =IF(K8="Dispensa sem justa causa",IF(AK8>=config!L53,60,VLOOKUP(AK8,config!E31:L52,5,FALSE)-30),0) -> 0 | AJ8: =IF(YEAR(AJ7)>YEAR(G10),(YEAR(AJ7)-YEAR(G10))-AN8,0) ->  | AK8: =IF(config!H28="ano completo",IF(YEAR(AJ7)>YEAR(G10),(YEAR(AJ7)-YEAR(G10))-AN8,0),IF(YEAR(AK7)>YEAR(G10),(YEAR(AK7)-YEAR(G10))-AN7,0)) ->  | AL8: =IF(AM8<=0,DAY(AJ7)-DAY(G10),0) ->  | AM8: =MONTH(AJ7)-MONTH(G10) ->  | AN8: =IF(AM8<0,1,IF(AL8<0,1,0)) ->  | AO8: Dias além da lei 12.506 | AP8: =IF(K8="Dispensa sem justa causa",IF(config!Z16="sim",calculo!AJ8,0),0) -> 0
AH9: ano atual | AI9: =YEAR(Z10) ->  | AJ9: =DATE(AI9,1,1) -> 
D10: Admissão: | G10: =IF(mascara!H8="","",mascara!H8) ->  | M10: Data do aviso: | Q10: =mascara!H10 -> 00:00:00 | Y10: Saída: | Z10: =IF(mascara!H12="","",mascara!H12) ->  | AH10: Meses trabalhados no ano | AI10: =MONTH(AI7)+AK10 ->  | AJ10: =DAY(AI7) ->  | AK10: =IF(AJ10<15,-1,0) -> 
Y11: Projeção para cálculo: | Z11: =IF(K8="Dispensa sem justa causa",AI7,Z10) ->  | AH11: Dias no aviso pela idade | AI11: =config!Z22 -> 15 | AJ11: Anos a serem trabalhados: | AK11: =config!Z21 -> 20 | AL11: resultado: | AM11: =IF(config!Z19="sim",IF(mascara!S31="sim",IF(AJ8>AK11,AI11,0),0),0) -> 0
D12: Salário: | H12: =mascara!H14 -> 0 | AH12: Férias proporcionais | AI12: =IF(AJ12>=15,DATEDIF(G10,Z11,"Ym")+1,DATEDIF(G10,Z11,"Ym")) ->  | AJ12: =IF(DAY(Z11)>=DAY(G10),DAY(Z11)-DAY(G10)+1,(DATEDIF(G10,AK14,"md")+1)+DAY(Z11)) -> 
AH13: valor dia | AI13: =H12/30 -> 0 | AJ13: Último dia do mês inicial | AK13: Último dia do mês anterior a projeçao do calculo | AL13: dias trabalhados apos data de aniversario
D14: Possui férias vencidas: | K14: =mascara!H16 -> 0 | O14: =IF(mascara!K31="","","Nº de pendentes no Imposto de renda:") ->  | Z14: =mascara!K31 -> 0 | AH14: Valor mês | AI14: =H12/12 -> 0 | AJ14: =EOMONTH(G10,0) ->  | AK14: =EOMONTH(Z11,-1) ->  | AL14: =IF(DAY(G10)>DAY(Z11),DAY(AK14)-DAY(G10)+DAY(Z11)+1,DAY(Z11)-DAY(G10)+1) -> 
P15: =IF(mascara!I35="","","N º de filhos no salário família:") ->  | Z15: =mascara!I35 -> 0 | AH15: 13º | AI15: meses no ano | AJ15: dias | AK15: resultado 13º
AH16: 13º | AI16: =IF(AJ16>=15,DATEDIF(G10,Z11,"YM")+1,DATEDIF(G10,Z11,"YM")) ->  | AJ16: =IF(DAY(Z11)>=DAY(G10),DAY(Z11)-DAY(G10)+1,(DATEDIF(G10,AK14,"md")+1)+DAY(Z11)) ->  | AK16: =IF(YEAR(Z11)>YEAR(G10),IF(DAY(Z11)>=15,MONTH(Z11),MONTH(Z11)-1),AI16) -> 
C17: x
A18: =IF(C18="x",0,1) -> 1 | D18: =IF(K18="","",IF(K18=0,"","Aviso prévio indenizado:")) ->  | K18: =IF(K8="Dispensa sem justa causa",IF(mascara!T12>0,mascara!T12*AI13,0)+AM11*AI13,0)*A18 -> 0 | O18: =IF(C18="x","",IF(K8="Dispensa sem justa causa",IF(mascara!T12>0,mascara!T12+AM11,IF(AM11>0,AM11,"")),"")) ->  | P18: =IF(O18="","","dias") ->  | T18: Descontos | AD18: x
AH19: INSS | AI19: valores | AJ19: porcentagem saldo e/ou + indenização | AK19: Porc 13º | AL19: Procentagem apenas sobre saldo de salario
A20: =IF(C20="x",0,1) -> 1 | D20: =IF(K20>0,"Saldo de salário:","") ->  | H20: =IF(C20="x",0,IF(AK6>30,30,AK6)) ->  | J20: =IF(C20="x","",IF(H20=1,"dia","dias")) ->  | K20: =IF(AM6=0,(H20*AI13),H12)*A20 ->  | T20: =IF(Z20>0,"Previdência Social:","") ->  | Z20: =IF(AJ24>0,(AN24)*AJ24,AI23)*AF20 ->  | AF20: =IF(AD20="x",0,1) -> 1 | AH20: até | AI20: =config!F72 -> 1556.94 | AJ20: =IF(AN24<=AI20,config!M72,0) ->  | AK20: =IF(K22<=AI20,config!M72,0) ->  | AL20: =IF(K20<=AI20,config!M72,0) ->  | AM20: Valor para calculo da previdencia social
AH21: até | AI21: =config!J73 -> 2594.92 | AJ21: =IF(AN24>AI20,IF(AN24<=AI21,config!M73,0),0) ->  | AK21: =IF(K22>AI20,IF(K22<=AI21,config!M73,0),0) ->  | AL21: =IF(K20>AI20,IF(AN24<=AI21,config!M73,0),0) ->  | AM21: outros | AN21: =IF(mascara!L20="sim",mascara!E20,0) -> 0
A22: =IF(C22="x",0,1) -> 1 | D22: =IF(K22>0,"13º Salário:","") ->  | G22: =IF(C22="x",0,AK16) ->  | I22: =IF(G22>0,IF(G22=1,"mês","meses"),"") ->  | K22: =(AI14*G22)*A22 ->  | T22: =IF(Z22>0,"Inss 13º Salário:","") ->  | Z22: =IF(AK24>0,K22*AK24,AI23)*AF22 ->  | AF22: =IF(AD22="x",0,1) -> 1 | AH22: até | AI22: =config!J74 -> 5189.82 | AJ22: =IF(AN24>AI21,IF(AN24<=AI22,config!M74,0),0) ->  | AK22: =IF(K22>AI21,IF(K22<=AI22,config!M74,0),0) ->  | AL22: =IF(K20>AI21,IF(AN24<=AI22,config!M74,0),0) ->  | AM22: Indenizado | AN22: =IF(config!O76="sim",calculo!K18,0) -> 0
AH23: teto | AI23: =AI22*11% -> 570.8802 | AJ23: =IF(AN24>AI22,381.4,0) ->  | AK23: =IF(K22>AI22,381.41,0) ->  | AL23: =IF(K20>AI22,381.4,0) ->  | AM23: saldo | AN23: =K20 -> 
A24: =IF(C24="x",0,1) -> 1 | D24: =IF(K24>0,"Férias proporcionais:","") ->  | K24: =(AI12*AI14)*A24 ->  | O24: =IF(C24="x",0,IF(AI12>0,AI12,"")) ->  | P24: =IF(C24="x","",IF(O24="","",IF(O24=1,"mês","meses"))) ->  | T24: =IF(Z24>0,"Contrib. Confed.:","") ->  | Z24: =IF(AH57>0,IF(AH56>AH57,AH57,AH56),AH56)*AF24 ->  | AF24: =IF(AD24="x",0,1) -> 1 | AH24: Prcentagem/valor | AJ24: =IF(AN24<=AI22,SUM(AJ20:AJ22),0) ->  | AK24: =IF(K22<=AI22,SUM(AK20:AK22),0) ->  | AL24: =IF(K20<=AI22,SUM(AL20:AL22),0) ->  | AM24: total | AN24: =SUM(AN21:AN23) -> 
A26: =IF(C26="x",0,1) -> 1 | D26: =IF(K26>0,"1/3 Férias proporcionais:","") ->  | K26: =(K24/3)*A26 ->  | T26: =IF(Z26=0,"","Aviso não cumprido:") ->  | Z26: =IF(K8="Pedido de demissão",IF(AI5<=Z10,0,(AI5-Z10)*AI13),0)*AF26 -> 0 | AF26: =IF(AD26="x",0,1) -> 1 | AH26: IPRF
AI27: Base, até | AJ27: Alíquota | AK27: Parcela a deduzir | AL27: IPRF Salário | AM27: IPRF 13º | AN27: IPRF Outros | AO27: Valor para calculo de Inss apenas sobre saldo de salario
A28: =IF(C28="x",0,1) -> 1 | D28: =IF(K28=0,"","Férias vencidas:") ->  | K28: =IF(K14="sim",IF(mascara!K16="",H12,0),0)*A28 -> 0 | T28: =IF(Z28=0,"","IRPF 13º:") ->  | Z28: =IF(SUM(AM29:AM32)>0,SUM(AM29:AM32),0)*AF28 ->  | AF28: =IF(AD28="x",0,1) -> 1 | AH28: =config!F60 -> 1903.98 | AI28: =AH28 -> 1903.98 | AJ28: =config!M60 -> 0 | AK28: =config!P60 -> 0 | AO28: outros | AP28: =IF(mascara!#REF!="sim",mascara!E20,0) -> 
AH29: =config!J61 -> 2826.65 | AI29: =AH29 -> 2826.65 | AJ29: =config!M61 -> 0.075 | AK29: =config!P61 -> 142.8 | AL29: =IF($AI$34>$AH28,IF($AI$34<=$AI29,($AI$34*$AJ29)-$AK29,0),0) ->  | AM29: =IF($AI$35>$AH28,IF($AI$35<=$AI29,($AI$35*$AJ29)-$AK29,0),0) ->  | AN29: =IF($AI$36>$AH28,IF($AI$36<=$AI29,($AI$36*$AJ29)-$AK29,0),0) -> 0 | AO29: Indenizado | AP29: =IF(config!Q83="sim",calculo!M25,0) -> 0
A30: =IF(C30="x",0,1) -> 1 | D30: =IF(K30=0,"","1/3 Férias vencidas:") ->  | K30: =(IF(K28=0,0,K28/3))*A30 -> 0 | T30: =IF(Z30=0,"","IRPF:") ->  | Z30: =IF(SUM(AL29:AL32)>0,SUM(AL29:AL32),0)*AF30 ->  | AF30: =IF(AD30="x",0,1) -> 1 | AH30: =config!J62 -> 3751.05 | AI30: =AH30 -> 3751.05 | AJ30: =config!M62 -> 0.15 | AK30: =config!P62 -> 354.8 | AL30: =IF(AI34>AI29,IF(AI34<=AI30,(AI34*AJ30)-AK30,0),0) ->  | AM30: =IF($AI$35>$AH29,IF($AI$35<=$AI30,($AI$35*$AJ30)-$AK30,0),0) ->  | AN30: =IF($AI$36>$AH29,IF($AI$36<=$AI30,($AI$36*$AJ30)-$AK30,0),0) -> 0 | AO30: saldo | AP30: =M27 -> 0
AH31: =config!J63 -> 4664.68 | AI31: =AH31 -> 4664.68 | AJ31: =config!M63 -> 0.225 | AK31: =config!P63 -> 636.13 | AL31: =IF($AI$34>$AH30,IF($AI$34<=$AI31,($AI$34*$AJ31)-$AK31,0),0) ->  | AM31: =IF($AI$35>$AH30,IF($AI$35<=$AI31,($AI$35*$AJ31)-$AK31,0),0) ->  | AN31: =IF($AI$36>$AH30,IF($AI$36<=$AI31,($AI$36*$AJ31)-$AK31,0),0) -> 0 | AO31: total | AP31: =SUM(AP28:AP30) -> 
A32: =IF(C32="x",0,1) -> 1 | D32: =IF(K32=0,"","Salário família:") ->  | K32: =IF(SUM(AK44:AK45)>0,SUM(AK44:AK45),0)*A32 ->  | T32: =IF(mascara!R20>0,mascara!O20,"") ->  | Z32: =IF(mascara!R20>0,mascara!R20,0) -> 0 | AH32: acima | AJ32: =config!M64 -> 0.275 | AK32: =config!P64 -> 869.36 | AL32: =IF($AI34>$AI31,($AI34*$AJ32)-$AK32,0) ->  | AM32: =IF(AI35>AI31,(AI35*AJ32)-AK32,0) ->  | AN32: =IF(AI36>AI31,(AI36*AJ32)-AK32,0) -> 0
AH33: dedução por dependente | AI33: =config!K66 -> 189.59 | AJ33: =AI33*Z14 -> 0
A34: =IF(C34="x",0,1) -> 1 | D34: =IF(K34<=0,"","Aviso prévio indenizado CCT") ->  | K34: =IF(AP8>0,AP8*AI13,0)*A34 -> 0 | O34: =IF(C34="x",0,IF(AP8>0,AP8,0)) -> 0 | P34: =IF(O34=0,"",IF(O34=1,"dia","dias")) ->  | AH34: salário e/ou outros líquido | AI34: =IF(mascara!L20="sim",(K20+K36)-Z20-AJ33,K20-(K20*AL24)-AJ33) -> 
AH35: 13º liquido | AI35: =(K22)-Z22-AJ33 -> 
D36: =IF(mascara!E20>0,"Outros:","") ->  | K36: =IF(mascara!E20>0,mascara!E20,0) -> 0
D38: =IF(K38>0,"Multa , Lei Nº 7.238/84","") ->  | K38: =IF(C38="x",0,IF(AI4>0,AI4,0)) -> 0 | AH38: sim ou não | AI38: afastamento
AH39: sim | AI39: Dispensa sem justa causa
AH40: não | AI40: Pedido de demissão
AH42: Faixa Salarial Até | AI42: Valor do benefício por filho de até 14 anos incompletos ou inválido
AJ43: valor | AK43: valor proporcional
D44: TOTAL BRUTO: | J44: =SUM(K18:N43) ->  | T44: TOTAL DESC.: R$ | Y44: =SUM(Z20:AC43) ->  | AH44: =config!F90 -> 806.8 | AI44: =config!I90 -> 41.37 | AJ44: =IF(H12<=AH44,Z15*AI44,0) -> 0 | AK44: =(AJ44/30)*H20 -> 
AH45: =config!F91 -> 1212.64 | AI45: =config!I91 -> 29.16 | AJ45: =IF(H12>AH44,IF(H12<=AH45,Z15*AI45,0),0) -> 0 | AK45: =(AJ45/30)*H20 -> 
T46: TOTAL A RECEBER: R$ | Z46: =IF(J44>Y44,J44-Y44,0) -> 
AI47: Dias de aviso indenizado | AJ47: Fraçao de meses
AH48: 13ª no aviso | AI48: =IF(K8="Dispensa sem justa causa",mascara!T12+AP8+AM11,0) -> 0 | AJ48: =IF(K8="Dispensa sem justa causa",IF(AI48>=15,AI48/30,0),0) -> 0
D49: =IF('seg aut'!F17>0,"Cálculo de seguro desemprego:","") ->  | R49: =IF(mascara!H6="Dispensa sem justa causa",IF(mascara!J22>0,"Cálculo de FGTS:",""),"") ->  | AI49: =Z11-Q10 ->  | AJ49: =IF(AI49>=15,AI49/30,0) ->  | AL49: =IF(DAY(Z10-G10)+1>=15,MONTH(Z10-G10),MONTH(Z10-G10)-1) ->  | AM49: =IF(K8="Dispensa sem justa causa",AL50-O24,0) -> 0
AI50: =Z10-Q10+1 ->  | AJ50: =IF(AI50<15,1,0) ->  | AL50: =IF(DAY(Z11-G10)+1>=15,MONTH(Z11-G10),MONTH(Z11-G10)-1) -> 
D51: =IF('seg aut'!F17>0,'seg aut'!D17,"") ->  | J51: =IF('seg aut'!F17>0,'seg aut'!F17,"") ->  | Y51: =IF(R49="Cálculo de FGTS:","Valor aproximado de saldo FGTS:","") ->  | Z51: =IF(R49="Cálculo de FGTS:",AJ53*mascara!J22*8/100,"") ->  | AH51: tirando casas decimais | AI51: =IF(AJ51<1.5,AJ51-1,IF(AJ51<2.5,AJ51-2,IF(AJ51<3.5,AJ51-3,IF(AJ51<4.5,AJ51-4,IF(AJ51<5.5,AJ51-5,AJ51-6))))) ->  | AJ51: =IF(AJ50+AJ48=0,0,IF(AJ48<AJ49,AJ50+AJ48,AJ48)) ->  | AK51: =IF(AJ51=0,0,AJ51-AI51) ->  | AL51: =AL50-AL49 -> 
D53: =IF('seg aut'!F19>0,'seg aut'!D19,"") ->  | J53: =IF('seg aut'!F19>0,'seg aut'!F19,"") ->  | Y53: =IF(R49="Cálculo de FGTS:","Valor aproximado da multa de 40%:","") ->  | Z53: =IF(R49="Cálculo de FGTS:",Z51*40/100,"") ->  | AH53: Meses trabalhados na empresa: | AJ53: =IF(YEAR(AJ7)>YEAR(G10),(YEAR(AJ7)-YEAR(G10))-AN8,0)*12+IF(DAY(Z11-G10)+1>=15,MONTH(Z11-G10),MONTH(Z11-G10)-1) -> 
D55: =IF(J51="","","*observar regras para recebimento de seguro desemprego") ->  | Y55: =IF(R49="Cálculo de FGTS:","Total aproximado de FGTS + multa:","") ->  | Z55: =IF(R49="Cálculo de FGTS:",Z51+Z53,"") ->  | AH55: Desconto confederativa
AH56: =IF(config!P8="Sim",(calculo!K36+calculo!K20)*config!P6,K20*config!P6) ->  | AI56: Calculo do desconto
D57: =config!E110 -> Obs. Cálculo baseado nas informações digitadas pelo usuário do site, podendo haver diferenças. | AH57: =IF(config!P10>0,config!P10,0) -> 0 | AI57: limite se houver
C61: =config!P104 -> www.fecomerciarios.org.br | AC61: =config!G105 -> 0

Sheet seg aut
B1: =config!I101 -> FECOMERCIÁRIOS | J1: Único Company .:. Acácio Jr .:. Fecomerciários
B2: =config!I102 -> Federação dos Empregados no Comércio do Estado de São Paulo
B5: Cálculo de seguro desemprego | K5: data de saída para calculo | L5: =F11 -> 
B6: =IF(mascara!H6="Pedido de demissão","Pedido de demissão não dá direito a seguro desemprego","") ->  | K6: meses | L6: =IF(N6<15,M6,M6+1) ->  | M6: =(YEAR(F11)-YEAR(F9))*12+MONTH(F11)-MONTH(F9) ->  | N6: =IF(DAY(F11)>DAY(F9),DAY(F11)-DAY(F9)+1,DAY(F9)-DAY(F11)+1) -> 
E7: Salário: | F7: =mascara!H14 -> 0 | K7: Salário mínimo | L7: =config!K95 -> 880
E9: Data de admissão: | F9: =mascara!H8 -> 00:00:00 | J9: Faixas de salário | L9: cálculo | O9: resultado
J10: até | K10: =config!F82 -> 1360.7 | L10: =config!T82 -> 0.8 | O10: =IF(F7<=K10,F7*L10,0) -> 0
E11: Data de saída (projeção) | F11: =calculo!Z11 ->  | J11: até | K11: =config!J83 -> 2268.05 | L11: =config!Q83 -> 1360.7 | M11: =config!X83 -> 0.5 | N11: =config!AE83 -> 1088.56 | O11: =IF(F7>0,IF(O10=0,IF(F7<=K11,(F7-L11)*M11+(N11),0),0),0) -> 0
J12: acima | K12: =config!G84 -> 2268.05 | L12: =config!S84 -> 1542.24 | O12: =IF(F7>0,IF(O11+O10=0,L12,0),0) -> 0
N13: total | O13: =IF(L6>5,SUM(O10:O12),0) -> 
D15: =IF(L6<6,IF(L6>0,"Somente tem direito ao benefício quem trabalhou mais de 6 meses.",""),"") ->  | J15: meses trabalhados | L15: parcelas a receber
K16: 0 | L16: 0
D17: =IF(O13>0,"Parcelas a receber:","") ->  | F17: =IF(B6="",IF(O13>0,VLOOKUP(L6,K16:L40,2),0),0) ->  | K17: 1 | L17: 0
K18: 2 | L18: 0
D19: =IF(O13>0,"Valor da parcela:","") ->  | F19: =IF(L6>5,IF(F17>0,IF(O13>=L7,O13,L7),0),0) ->  | K19: 3 | L19: 0
K20: 4 | L20: 0
B21: =IF(mascara!E28="","",mascara!E28) ->  | K21: =K20+1 -> 5 | L21: 0
K22: =K21+1 -> 6 | L22: 3
K23: =K22+1 -> 7 | L23: 3
B24: Infomações complementares: | K24: 8 | L24: 3
B25: Tem direito ao seguro desemprego quem tiver sido dispensado sem justa causa, tiver trabalhado pelo menos 6 meses nos últimos 36 meses, não possuir renda própria e não estiver recebendo benefício de prestação continuada da Previdência Social, exceto pensão por morte ou auxílio-acidente. | K25: 9 | L25: 3
K26: 10 | L26: 3
K27: 11 | L27: 3
B28: O trabalhador terá direito de 03 a 05 parcelas do benefício, de forma contínua ou alternada, a cada 16 meses, de acordo com a quantidade de meses trabalhados nos últimos 36 meses anteriores a dispensa, da seguinte forma: | K28: 12 | L28: 4
K29: 13 | L29: 4
K30: 14 | L30: 4
K31: 15 | L31: 4
B32: O trabalhador tem do 7º ao 120º dia após a data da demissão do emprego para fazer o requerimento do benefício, que poderá ser feito nas DRT (Delegacia Regional do Trabalho, no PAT ( Posto de Atendimento ao Trabalhador) no SINE (Sistema Nacional de Emprego), ou nas agências credenciadas da CAIXA. | K32: 16 | L32: 4
K33: 17 | L33: 4
B34: Como requerer? | K34: 18 | L34: 4
B35: Comparecer em um dos locais acima citados levando os seguintes documentos: | K35: 19 | L35: 4
K36: 20 | L36: 4
B37: · Comunicação de Dispensa - CD (via marrom) e Requerimento do Seguro-Desemprego - SD (via verde); | K37: 21 | L37: 4
K38: 22 | L38: 4
B39: · Termo de Rescisão de Contrato de Trabalho - TRCT; | K39: 23 | L39: 4
K40: 24 | L40: 5
B41: · Carteira de Trabalho;
J42: De acordo com informações informandas, você não tem direito ao benefício
B43: · Carteira de Identidade ou Certidão de Nascimento ou Certidão de Casamento com Protocolo de requerimento na Carteira de Identidade, ou Carteira Nacional de Habilitação - CNH, dentro do prazo de validade, ou Passaporte, ou Certificado de Reservista;
L44: sim
B45: · Comprovante de inscrição no PIS/PASEP; | L45: não
B47: · Documento de levantamento dos depósitos no FGTS ou extrato comprobatório dos depósitos;
B49: · Cadastro Pessoa Física - CPF;
B51: · Comprovante dos 2 últimos contracheques ou recibos de pagamento para o trabalhador formal (não é documentação obrigatória)
B53: Onde Receber?
B54: Em qualquer Agência da CAIXA, ou Casa Lotérica ou Correspondente Bancário (CAIXA AQUI) ou Auto-Atendimento (CAIXA AZUL 24 HORAS).
B55: O pagamento nas Lotéricas, nos Correspondentes Bancários ou no Auto-Atendimento somente é realizado com o Cartão do Cidadão.
A57: =config!P104 -> www.fecomerciarios.org.br | H57: =config!H104 -> (11) 3060 6600

Sheet masc_termino
N1: Base de cálculo demissional
N3: =config!I101 -> FECOMERCIÁRIOS
B6: Término de Contrato de Experiência - Rescisão
I8: Admissão: | O8: dd/mm/aaaa (data do registro na carteira)
J10: Saída: | O10: dd/mm/aaaa (data do último dia trabalhado na empresa)
L12: Contrato de | N12: =IF(L8>0,IF(L10>0,(L10-L8)+1,0),0) -> 0 | O12: dias
I14: Salário:
B18: Nº dependentes no Imposto de renda: | P18: Adiantamentos:
B20: Nº de filhos com salário famlía: | K20: Nº de filhos menores de 14 anos, para salários até | S20: =config!F91 -> 1212.64
A24: =Menu!A31 -> Planilha+ 5.1.2 .:. Acácio Jr .:. unico@acaciojunior.com - Última atualização: 03/02/2016

Sheet termin_exp
B1: =config!I101 -> FECOMERCIÁRIOS | AC1: Único Company .:. Acácio Jr .:. Fecomerciários
B2: =config!I102 -> Federação dos Empregados no Comércio do Estado de São Paulo | AE2: dias | AF2: meses
AD3: Meses trabalhados | AE3: =(M10-E10)+1 -> 1 | AF3: =IF(AE3>=15,IF(AE3<=44,1,IF(AE3<=74,2,IF(AE3<=104,3,IF(AE3<=119,4))))) -> FALSE
B4: =config!J103 -> Rua dos Pinheiros, nº 20 - Pinheiros | AA4: =config!H104 -> (11) 3060 6600
B6: Base de Calculo - Rescisão de Contrato de Experiência | AD6: saldo de dias trabalhados | AE6: =IF(MONTH(M10)=MONTH(E10),IF(YEAR(M10)=YEAR(E10),DAY(M10)-DAY(E10),DAY(M10)),DAY(M10)) -> 0 | AF6: Total de dias trabalhados no mes | AG6: =IF(MONTH(M10)=MONTH(E10),IF(YEAR(M10)=YEAR(E10),DAY(M10)-DAY(E10),DAY(M10)),DAY(M10)) -> 0
AD7: Data saída aviso | AF7: =M10 -> 00:00:00 | AG7: dia | AI7: Dias para 13º | AJ7: meses 13º
B8: Término de Contrado de Experiência | AD8: Anos trabalhados | AE8: =IF(YEAR(AF7)>YEAR(E10),(YEAR(AF7)-YEAR(E10))-AH8,0) -> 0 | AF8: =IF(AG8<=0,DAY(AF7)-DAY(E10),0) -> 0 | AG8: =MONTH(AF7)-MONTH(E10) -> 0 | AH8: =IF(AG8<0,1,IF(AF8<0,1,0)) -> 0 | AI8: =DAY(AF7)-DAY(E10) -> 0 | AJ8: =IF(AI8>=15,AG8+1,AG8) -> 0
AD9: ano atual | AE9: =YEAR(M10) -> 1900 | AF9: =DATE(AE9,1,1) -> 1900-01-01
B10: Admissão: | E10: =masc_termino!L8 -> 00:00:00 | K10: Saída: | M10: =masc_termino!L10 -> 00:00:00 | R10: Salário: | U10: =masc_termino!L14 -> 0 | AD10: Meses trabalhados no ano | AE10: =MONTH(AF7)+AG10 -> 0 | AF10: =DAY(AF7) -> 0 | AG10: =IF(AF10<15,-1,0) -> -1
AD11: Férias proporcionais | AE11: =IF(YEAR(E10)=YEAR(M10),MONTH(M10)-MONTH(E10)-1,IF(MONTH(E10)>MONTH(M10),12-MONTH(E10)+MONTH(M10)-1))+AF11 -> -1 | AF11: =IF(AG11>=15,1,0) -> 0 | AG11: =IF(DAY(E10)>DAY(M10),(DAY(AH14)-DAY(E10)+DAY(M10)+1),DAY(M10)-DAY(E10)+1) -> 1 | AH11: =IF(YEAR(E10)=YEAR(M10),0,IF(DAY(E10)>15,1,0)) -> 0
AD13: valor dia | AE13: =U10/30 -> 0
B14: Nº de pendentes no Imposto de renda: | M14: =masc_termino!K18 -> 0 | P14: N º de filhos no salário família: | Z14: =masc_termino!I20 -> 0 | AD14: Valor mês | AE14: =U10/12 -> 0 | AG14: Fim mes anterior | AH14: =EOMONTH(M10,-1) -> 
AD15: 13º | AE15: meses no ano | AF15: dias | AG15: calculo de meses no ano
AD16: 13º | AE16: =IF(YEAR(M10)>YEAR(E10),IF(AF16>=15,MONTH(M10),MONTH(M10)-1),MONTH(M10)-MONTH(E10)) -> 0 | AF16: =IF(YEAR(E10)=YEAR(M10),IF(DAY(E10)>DAY(M10),(DAY(AH14)-DAY(E10)+DAY(M10)+1),DAY(M10)-DAY(E10)+1),DAY(M10)) -> 1 | AG16: =IF(YEAR(M10)=YEAR(E10),IF(AF16>=15,AE16,AE16-1),AE16)+AH16 -> -1 | AH16: =IF(YEAR(E10)=YEAR(M10),0,IF(DAY(E10)>15,1,0)) -> 0
B18: Saldo salário: | F18: =IF(AG6>30,30,AG6) -> 0 | H18: =IF(F18=1,"dia","dias") -> dias | I18: =(F18*AE13)+W12 -> 0 | R18: Descontos | AD18: 13.o Salario | AE18: =YEAR(AF7)-YEAR(E10) -> 0 | AF18: =IF(AE18=0,MONTH(AF7)-MONTH(E10),0) -> 0 | AG18: =IF(AE18=0,DAY(AF7)-DAY(E10),0) -> 0 | AH18: =IF(AF18>0,IF(AG18>=15,AF18,AF18-1),0) -> 0 | AI18: =DAY(AF7) -> 0 | AJ18: =IF(AF18=0,MONTH(AF7),0) -> 1 | AK18: =IF(AJ18>0,IF(AI18>=15,AJ18,AJ18-1),0) -> 0
AD19: INSS | AE19: valores | AF19: porcentagem saldo | AG19: Porc 13º | AH19: 13º indenizado
B20: =IF(I20>0,"13º Salário:","") ->  | E20: =AF3 -> FALSE | G20: =IF(E20>0,IF(E20=1,"mês","meses"),"") -> meses | I20: =AE14*E20 -> 0 | R20: =IF(X20>0,"INSS Saldo Salário:","") ->  | X20: =IF(AF24>0,I18*AF24,AE23) -> 0 | AD20: até | AE20: =config!F72 -> 1556.94 | AF20: =IF(I22<=AE20,config!M72,0) -> 0.08 | AG20: =IF(I24<=AE20,config!M72,0) -> 0.08 | AH20: =IF(I38<=AE20,config!M72,0) -> 0.08
AD21: até | AE21: =config!J73 -> 2594.92 | AF21: =IF(I22>AE20,IF(I22<=AE21,config!M73,0),0) -> 0 | AG21: =IF(I24>AE20,IF(I24<=AE21,config!M73,0),0) -> 0 | AH21: =IF(I38>AE20,IF(I38<=AE21,config!M73,0),0) -> 0
B22: =IF(I22>0,"Férias Proporcionais:","") ->  | I22: =AE11*AE14 -> 0 | M22: =AF3 -> FALSE | N22: =IF(M22>1,"meses","mês") -> meses | R22: =IF(X22>0,"Inss 13º Salário:","") ->  | X22: =IF(AG24>0,I20*AG24,AE23) -> 0 | AD22: até | AE22: =config!J74 -> 5189.82 | AF22: =IF(I22>AE21,IF(I22<=AE22,config!M74,0),0) -> 0 | AG22: =IF(I24>AE21,IF(I24<=AE22,config!M74,0),0) -> 0 | AH22: =IF(I38>AE21,IF(I38<=AE22,config!M74,0),0) -> 0
AD23: teto | AE23: =AE22*11% -> 570.8802 | AF23: =IF(I22>AE22,381.4,0) -> 0 | AG23: =IF(I24>AE22,381.41,0) -> 0 | AH23: =IF(I38>AE22,381.41,0) -> 0
B24: =IF(I24>0,"1/3 Férias Proporcionais:","") ->  | I24: =I22/3 -> 0 | R24: =IF(X24>0,"Contrib. Confed.:","") ->  | X24: =IF(I18<=3000,I18*config!P6,60) -> 0 | AD24: Prcentagem/valor | AF24: =IF(I18<=AE22,SUM(AF20:AF22),0) -> 0.08 | AG24: =IF(I20<=AE22,SUM(AG20:AG22),0) -> 0.08 | AH24: =IF(I38<=AE22,SUM(AH20:AH22),0) -> 0.08
B26: =IF(I26>0,"Salário família:","") ->  | I26: =SUM(AG46:AG47) -> 0 | R26: =IF(X26>0,"IRPF 13º:","") ->  | X26: =SUM(AI31:AI34) -> 0 | AD26: IPRF
R28: =IF(X28=0,"","Adiantamentos") ->  | X28: =masc_termino!S18 -> 0
AE29: Base, até | AF29: Alíquota | AG29: Parcela a deduzir | AH29: IPRF Salário | AI29: IPRF 13º
R30: =IF(X30>0,"IRPF Salário:","") ->  | X30: =SUM(AH31:AH34) -> 0 | AD30: =config!F60 -> 1903.98 | AE30: =AD30 -> 1903.98 | AF30: =config!M60 -> 0 | AG30: =config!P60 -> 0
AD31: =config!J61 -> 2826.65 | AE31: =AD31 -> 2826.65 | AF31: =config!M61 -> 0.075 | AG31: =config!P61 -> 142.8 | AH31: =IF($AE$36>$AD30,IF($AE$36<=$AE31,($AE$36*$AF31)-$AG31,0),0) -> 0 | AI31: =IF($AE$37>$AD30,IF($AE$37<=$AE31,($AE$37*$AF31)-$AG31,0),0) -> 0
B32: TOTAL BRUTO: | H32: =SUM(I18:L29) -> 0 | R32: TOTAL DESC.: R$ | W32: =SUM(X20:AA30) -> 0 | AD32: =config!J62 -> 3751.05 | AE32: =AD32 -> 3751.05 | AF32: =config!M62 -> 0.15 | AG32: =config!P62 -> 354.8 | AH32: =IF(AE36>AE31,IF(AE36<=AE32,(AE36*AF32)-AG32,0),0) -> 0 | AI32: =IF($AE$37>$AD31,IF($AE$37<=$AE32,($AE$37*$AF32)-$AG32,0),0) -> 0
AD33: =config!J63 -> 4664.68 | AE33: =AD33 -> 4664.68 | AF33: =config!M63 -> 0.225 | AG33: =config!P63 -> 636.13 | AH33: =IF($AE$36>$AD32,IF($AE$36<=$AE33,($AE$36*$AF33)-$AG33,0),0) -> 0 | AI33: =IF($AE$37>$AD32,IF($AE$37<=$AE33,($AE$37*$AF33)-$AG33,0),0) -> 0
H34: TOTAL A RECEBER: R$ | N34: =IF(H32>W32,H32-W32,0) -> 0 | AD34: acima | AF34: =config!M64 -> 0.275 | AG34: =config!P64 -> 869.36 | AH34: =IF($AE36>$AE33,($AE36*$AF34)-$AG34,0) -> 0 | AI34: =IF(AE37>AE33,(AE37*AF34)-AG34,0) -> 0
G35: + | AD35: dedução por dependente | AE35: =config!K66 -> 189.59 | AF35: =AE35*X14 -> 0
H36: FGTS: (valor estimado) | N36: =((U10/30)*masc_termino!N12)*8% -> 0 | AD36: salário líquido | AE36: =I18-X20-AF35 -> 0
AD37: 13º liquido | AE37: =(I20+I38)-X22-AF35 -> 0
B39: =config!E110 -> Obs. Cálculo baseado nas informações digitadas pelo usuário do site, podendo haver diferenças.
AD40: sim ou não | AE40: afastamento
AD41: sim | AE41: Rescisão antecipada do contrato de experiência por iniciativa do empregador
AD42: não | AE42: Rescisão antecipada do contrato de experiência por iniciativa do empregado
AD44: Faixa Salarial Até | AE44: Valor do benefício por filho de até 14 anos incompletos ou inválido
AF45: valor | AG45: valor proporcional
AD46: =config!F90 -> 806.8 | AE46: =config!I90 -> 41.37 | AF46: =IF(U10<=AD46,Z14*AE46,0) -> 0 | AG46: =(AF46/30)*F18 -> 0
A47: =config!P104 -> www.fecomerciarios.org.br | AA47: =config!G105 -> 0 | AD47: =config!F91 -> 1212.64 | AE47: =config!I91 -> 29.16 | AF47: =IF(U10>AD46,IF(U10<=AD47,Z14*AE47,0),0) -> 0 | AG47: =(AF47/30)*F18 -> 0

Sheet masc_exp2
N1: Base de cálculo demissional
W2: por parte da empresa
N3: =config!I101 -> FECOMERCIÁRIOS | W3: por parte do trabalhador
B6: Rescisão antecipada do contrato de experiência:
I8: Admissão: | O8: dd/mm/aaaa (data do registro na carteira)
J10: Saída: | O10: dd/mm/aaaa (data do último dia trabalhado na empresa)
B12: Contrato de experiência de quantos dias? | N12: máximo 90 dias | R12: =IF(L10>L8,(L10-L8)+1,0) -> 0 | S12: =IF(R12>=1,"dias trabalhados","") -> 
I14: Salário:
A15: =IF(L12>0,IF(L12<R12,"Datas não correspondem com o número de dias do contrato",""),"") -> 
B18: Nº dependentes no Imposto de renda: | Q18: Adiantamentos:
B20: Nº de filhos com salário famlía: | K20: Nº de filhos menores de 14 anos ,para salários até: | S20: =config!F91 -> 1212.64
A24: =Menu!A31 -> Planilha+ 5.1.2 .:. Acácio Jr .:. unico@acaciojunior.com - Última atualização: 03/02/2016

Sheet exp2
B1: =config!I101 -> FECOMERCIÁRIOS
B2: =config!I102 -> Federação dos Empregados no Comércio do Estado de São Paulo | AE2: dias | AF2: meses
AD3: Meses trabalhados | AE3: =(M10-E10)+1 -> 1 | AF3: =IF(AE3>=15,IF(AE3<=44,1,IF(AE3<=74,2,IF(AE3<=104,3,IF(AE3<=119,4))))) -> FALSE
B4: =config!J103 -> Rua dos Pinheiros, nº 20 - Pinheiros | AA4: =config!H104 -> (11) 3060 6600
AD5: Dias de multa para termino contrato | AE5: =(X10-M10)/2 -> -0.5
B6: Base de Calculo - Rescisão de Contrato de Experiência | AD6: saldo de dias trabalhados | AE6: =IF(MONTH(M10)=MONTH(E10),IF(YEAR(M10)=YEAR(E10),DAY(M10)-DAY(E10),DAY(M10)),DAY(M10)) -> 0 | AF6: Saldo de dias trabalhados no mes | AG6: =IF(MONTH(M10)=MONTH(E10),IF(YEAR(M10)=YEAR(E10),DAY(M10)-DAY(E10)+1,DAY(M10)),DAY(M10)) -> 1
AD7: Data saída aviso | AF7: =IF(O8="Dispensa sem justa causa",IF(X10="sim",M10,IF(X10="não",(M10+30))),M10) -> 00:00:00 | AG7: dia | AI7: Dias para 13º | AJ7: meses 13º
B8: Rescisão antecipada do contrato de experiência: | O8: =masc_exp2!M6 -> 0 | AD8: Anos trabalhados | AE8: =IF(YEAR(AF7)>YEAR(E10),(YEAR(AF7)-YEAR(E10))-AH8,0) -> 0 | AF8: =IF(AG8<=0,DAY(AF7)-DAY(E10),0) -> 0 | AG8: =MONTH(AF7)-MONTH(E10) -> 0 | AH8: =IF(AG8<0,1,IF(AF8<0,1,0)) -> 0 | AI8: =DAY(AF7)-DAY(E10) -> 0 | AJ8: =IF(AI8>=15,AG8+1,AG8) -> 0
AD9: ano atual | AE9: =YEAR(M10) -> 1900 | AF9: =DATE(AE9,1,1) -> 1900-01-01
B10: Admissão: | E10: =masc_exp2!L8 -> 00:00:00 | K10: Saída: | M10: =masc_exp2!L10 -> 00:00:00 | R10: Término do contrato: | X10: =(masc_exp2!L8+masc_exp2!L12)-1 -> -1 | AD10: Meses trabalhados no ano | AE10: =MONTH(AF7)+AG10 -> 0 | AF10: =DAY(AF7) -> 0 | AG10: =IF(AF10<15,-1,0) -> -1
B12: Salário: | E12: =masc_exp2!L14 -> 0 | AD12: Férias proporcionais | AE12: =IF(YEAR(E10)=YEAR(M10),IF(AG12>=15,MONTH(M10)-MONTH(E10)+1,MONTH(M10)-MONTH(E10)),IF(MONTH(E10)>MONTH(M10),12-MONTH(E10)+MONTH(M10))) -> 0 | AF12: =IF(AG12>=15,1,0) -> 0 | AG12: =IF(DAY(E10)>DAY(M10),(DAY(AG13)-DAY(E10)+DAY(M10)+1),DAY(M10)-DAY(E10)+1) -> 1 | AH12: =(AF12-AG12)+1 -> 0 | AI12: =IF(AH12>=15,1,0) -> 0
AD13: valor dia | AE13: =E12/30 -> 0 | AF13: Fim mes anterior | AG13: =EOMONTH(M10,-1) -> 
B14: Nº de pendentes no Imposto de renda: | M14: =masc_exp2!K18 -> 0 | P14: N º de filhos no salário família: | Z14: =masc_exp2!I20 -> 0 | AD14: Valor mês | AE14: =E12/12 -> 0
AD15: 13º | AE15: meses no ano | AF15: dias | AG15: calculo de meses no ano
AD16: 13º | AE16: =IF(YEAR(M10)>YEAR(E10),IF(AF16>=15,MONTH(M10),MONTH(M10)-1),IF(AF16>=15,MONTH(M10)-MONTH(E10)+1,MONTH(M10-MONTH(E10)))) ->  | AF16: =IF(YEAR(E10)=YEAR(M10),IF(DAY(E10)>DAY(M10),(DAY(AG13)-DAY(E10)+DAY(M10)+1),DAY(M10)-DAY(E10)+1),DAY(M10)) -> 1 | AG16: =IF(YEAR(M10)=YEAR(E10),IF(AF16>=15,AE16,AE16-1),AE16)+AH16 ->  | AH16: =IF(YEAR(E10)=YEAR(M10),0,IF(DAY(E10)>15,1,0)) -> 0
AE17: =DAY(AG13)-DAY(E10)+1 ->  | AF17: =DAY(M10) -> 0
B18: Saldo salário: | F18: =IF(AG6>30,30,AG6) -> 1 | H18: =IF(F18=1,"dia","dias") -> dia | I18: =(F18*AE13)+W12 -> 0 | R18: Descontos | AD18: 13.o Salario | AE18: =YEAR(AF7)-YEAR(E10) -> 0 | AF18: =IF(AE18=0,MONTH(AF7)-MONTH(E10),0) -> 0 | AG18: =IF(AE18=0,DAY(AF7)-DAY(E10),0) -> 0 | AH18: =IF(AF18>0,IF(AG18>=15,AF18,AF18-1),0) -> 0 | AI18: =DAY(AF7) -> 0 | AJ18: =IF(AF18=0,MONTH(AF7),0) -> 1 | AK18: =IF(AJ18>0,IF(AI18>=15,AJ18,AJ18-1),0) -> 0
AD19: INSS | AE19: valores | AF19: porcentagem saldo | AG19: Porc 13º | AH19: 13º indenizado
B20: =IF(I20>0,"13º Salário:","") ->  | E20: =AF3 -> FALSE | G20: =IF(E20>0,IF(E20=1,"mês","meses"),"") -> meses | I20: =AE14*E20 -> 0 | R20: =IF(X20>0,"INSS Saldo Salário:","") ->  | X20: =IF(AF24>0,I18*AF24,AE23) -> 0 | AD20: até | AE20: =config!F72 -> 1556.94 | AF20: =IF(I22<=AE20,config!M72,0) -> 0.08 | AG20: =IF(I24<=AE20,config!M72,0) -> 0.08 | AH20: =IF(I36<=AE20,8%,0) -> 0.08
AD21: até | AE21: =config!J73 -> 2594.92 | AF21: =IF(I22>AE20,IF(I22<=AE21,config!M73,0),0) -> 0 | AG21: =IF(I24>AE20,IF(I24<=AE21,config!M73,0),0) -> 0 | AH21: =IF(I36>AE20,IF(I36<=AE21,9%,0),0) -> 0
B22: =IF(I22>0,"Férias Proporcionais:","") ->  | I22: =AE12*AE14 -> 0 | M22: =AF3 -> FALSE | N22: =IF(M22>1,"meses","mês") -> meses | R22: =IF(X22>0,"Inss 13º Salário:","") ->  | X22: =IF(AG24>0,I20*AG24,AE23) -> 0 | AD22: até | AE22: =config!J74 -> 5189.82 | AF22: =IF(I22>AE21,IF(I22<=AE22,config!M74,0),0) -> 0 | AG22: =IF(I24>AE21,IF(I24<=AE22,config!M74,0),0) -> 0 | AH22: =IF(I36>AE21,IF(I36<=AE22,11%,0),0) -> 0
AD23: teto | AE23: =AE22*11% -> 570.8802 | AF23: =IF(I22>AE22,381.4,0) -> 0 | AG23: =IF(I24>AE22,381.41,0) -> 0 | AH23: =IF(I36>AE22,381.41,0) -> 0
B24: =IF(I24>0,"1/3 Férias Proporcionais:","") ->  | I24: =I22/3 -> 0 | R24: =IF(X24>0,"Contrib. Confed.:","") ->  | X24: =IF(I18<=3000,I18*config!P6,60) -> 0 | AD24: Prcentagem/valor | AF24: =IF(I18<=AE22,SUM(AF20:AF22),0) -> 0.08 | AG24: =IF(I20<=AE22,SUM(AG20:AG22),0) -> 0.08 | AH24: =IF(I36<=AE22,SUM(AH20:AH22),0) -> 0.08
B26: =IF(I26>0,"Quebra de contrato:","") ->  | I26: =IF(O8="por parte da empresa",AE5*AE13,0) -> 0 | R26: =IF(X26>0,"Quebra de contrato:","") ->  | X26: =IF(O8="por parte do trabalhador",AE5*AE13,0) -> 0 | AD26: IPRF
AE27: Base, até | AF27: Alíquota | AG27: Parcela a deduzir | AH27: IPRF Salário | AI27: IPRF 13º
B28: =IF(I28>0,"Salário família:","") ->  | I28: =SUM(AG46:AG47) -> 0 | R28: =IF(X28>0,"IRPF 13º:","") ->  | X28: =SUM(AI29:AI32) -> 0 | AD28: =config!F60 -> 1903.98 | AE28: =AD28 -> 1903.98 | AF28: =config!M60 -> 0 | AG28: =config!P60 -> 0
AD29: =config!J61 -> 2826.65 | AE29: =AD29 -> 2826.65 | AF29: =config!M61 -> 0.075 | AG29: =config!P61 -> 142.8 | AH29: =IF($AE$36>$AD28,IF($AE$36<=$AE29,($AE$36*$AF29)-$AG29,0),0) -> 0 | AI29: =IF($AE$37>$AD28,IF($AE$37<=$AE29,($AE$37*$AF29)-$AG29,0),0) -> 0
R30: =IF(X30>0,"IRPF Salário:","") ->  | X30: =SUM(AH29:AH32) -> 0 | AD30: =config!J62 -> 3751.05 | AE30: =AD30 -> 3751.05 | AF30: =config!M62 -> 0.15 | AG30: =config!P62 -> 354.8 | AH30: =IF(AE36>AE29,IF(AE36<=AE30,(AE36*AF30)-AG30,0),0) -> 0 | AI30: =IF($AE$37>$AD29,IF($AE$37<=$AE30,($AE$37*$AF30)-$AG30,0),0) -> 0
AD31: =config!J63 -> 4664.68 | AE31: =AD31 -> 4664.68 | AF31: =config!M63 -> 0.225 | AG31: =config!P63 -> 636.13 | AH31: =IF($AE$36>$AD30,IF($AE$36<=$AE31,($AE$36*$AF31)-$AG31,0),0) -> 0 | AI31: =IF($AE$37>$AD30,IF($AE$37<=$AE31,($AE$37*$AF31)-$AG31,0),0) -> 0
R32: =IF(X32=0,"","Adiantamentos") ->  | X32: =masc_exp2!R18 -> 0 | AD32: acima | AF32: =config!M64 -> 0.275 | AG32: =config!P64 -> 869.36 | AH32: =IF($AE36>$AE31,($AE36*$AF32)-$AG32,0) -> 0 | AI32: =IF(AE37>AE31,(AE37*AF32)-AG32,0) -> 0
B34: TOTAL BRUTO: | H34: =I28+I26+I24+I22+I20+I18 -> 0 | R34: TOTAL DESC.: R$ | W34: =X30+X28+X26+X24+X22+X20+X32 -> 0
AD35: dedução por dependente | AE35: =config!K66 -> 189.59 | AF35: =AE35*X14 -> 0
M36: TOTAL A RECEBER: R$ | S36: =IF(H34>W34,H34-W34,0) -> 0 | AD36: salário líquido | AE36: =I18-X20-AF35 -> 0
L37: + | AD37: 13º liquido | AE37: =(I20+I36)-X22-AF35 -> 0
M38: =IF(O8="por parte da empresa","FGTS: (valor estimado)","") ->  | S38: =IF(M38="","",((E12/30)*masc_exp2!L12)*8%) -> 
B40: =config!E110 -> Obs. Cálculo baseado nas informações digitadas pelo usuário do site, podendo haver diferenças. | AD40: sim ou não | AE40: afastamento
AD41: sim | AE41: Rescisão antecipada do contrato de experiência por iniciativa do empregador
AD42: não | AE42: Rescisão antecipada do contrato de experiência por iniciativa do empregado
AD44: Faixa Salarial Até | AE44: Valor do benefício por filho de até 14 anos incompletos ou inválido
AF45: valor | AG45: valor proporcional
A46: =config!P104 -> www.fecomerciarios.org.br | AA46: =config!G105 -> 0 | AD46: =config!F90 -> 806.8 | AE46: =config!I90 -> 41.37 | AF46: =IF(E12<=AD46,Z14*AE46,0) -> 0 | AG46: =(AF46/30)*F18 -> 0
AD47: =config!F91 -> 1212.64 | AE47: =config!I91 -> 29.16 | AF47: =IF(E12>AD46,IF(E12<=AD47,Z14*AE47,0),0) -> 0 | AG47: =(AF47/30)*F18 -> 0

Sheet config
E1: Configuração
E3: Configuração para cálculos rescisórios
E6: Contribuição Confederativa/Assistencial: | P6: 0.01
E8: Calcula sobre outros (valores adicionais do mês)? | P8: Sim
E10: Valor limite de desconto:
E14: Aviso prévio proporcional além da lei. N 12.506
E15: Os empregados dispensandos sem justa causa terão direito de 01 (um) dia em pecúnia, no aviso prévio legal, por ano completo de serviço na mesma empresa? (além dos 3 dias já previsto em lei)
Z16: Não | AM16: Sim
AM17: Não
E19: Aos empregados com certa idade e certo tempo de contrato de trabalho na mesma empresa, dispensados sem justa causa, o aviso prévio terá acréscimo? | U19: Existe o benefício? | Z19: Sim
U20: A partir de que idade? | Z20: 50
T21: Anos de trabalho na empresa | Z21: 20
T22: Dias de acréscimo no aviso | Z22: 15
E26: Tabela de contagem do acréscimo ao tempo de aviso prévio - Lei nº 12.506 de 11 de outubro de 2011
E28: Parâmetro: | H28: Ano + 1 dia | AK28: Parâmetro
AK29: Ano Completo
E30: Tempo de serviço, Ano completo | I30: Aviso Prévio, dias | AK30: Ano + 1 dia
E31: 0 | I31: 30 | M31: =E31 -> 0
E32: 1 | I32: 33 | M32: =E32 -> 1
E33: 2 | I33: 36 | M33: 2
E34: 3 | I34: =IF((I33-I32)+(I33)<90,(I33-I32)+(I33),90) -> 39 | M34: 3
E35: 4 | I35: =IF((I34-I33)+(I34)<90,(I34-I33)+(I34),90) -> 42 | M35: 4
E36: 5 | I36: 45 | M36: 5
E37: 6 | I37: 48 | M37: 6
E38: 7 | I38: 51 | M38: 7
E39: 8 | I39: 54 | M39: 8
E40: 9 | I40: 57 | M40: 9
E41: 10 | I41: 60 | M41: 10
E42: 11 | I42: 63 | M42: 11
E43: 12 | I43: 66 | M43: 12
E44: 13 | I44: 69 | M44: 13
E45: 14 | I45: 72 | M45: 14
E46: 15 | I46: 75 | M46: 15
E47: 16 | I47: 78 | M47: 16
E48: 17 | I48: 81 | M48: 17
E49: 18 | I49: 84 | M49: 18
E50: 19 | I50: 87 | M50: 19
E51: 20 | I51: 90 | M51: 20
E52: 21 | I52: 90 | M52: 21
L53: =VLOOKUP(90,I31:M52,5,FALSE) -> 20
E58: Imposto de renda na fonte
E59: Base de cálculo (R$) | M59: Alíquota (%) | P59: Parcela a deduzir do imposto (R$)
E60: até | F60: 1903.98 | M60: 0 | P60: 0
E61: de | F61: =F60+0.01 -> 1903.99 | I61: até | J61: 2826.65 | M61: 0.075 | P61: 142.8
E62: de | F62: =J61+0.01 -> 2826.66 | I62: até | J62: 3751.05 | M62: 0.15 | P62: 354.8
E63: de | F63: =J62+0.01 -> 3751.06 | I63: até | J63: 4664.68 | M63: 0.225 | P63: 636.13
E64: Acima de | H64: =J63 -> 4664.68 | M64: 0.275 | P64: 869.36
E66: Dedução por dependente: | K66: 189.59
E70: Tabela de desconto de INSS
E71: Salário | M71: Alíquota para fins de recolhimento (%)
E72: até | F72: 1556.94 | M72: 0.08
E73: de | F73: =F72+0.01 -> 1556.95 | I73: até | J73: 2594.92 | M73: 0.09
E74: de | F74: =J73+0.01 -> 2594.93 | I74: até | J74: 5189.82 | M74: 0.11
E76: Desconta INSS sobre aviso prévio indenizado? | O76: Sim
E80: Tabela para cálculo do benefício Seguro Desemprego
E81: Faixas de salário médio | M81: Valor da parcela
E82: até | F82: 1360.7 | M82: Multiplica-se salário médio por | T82: 0.8 | V82: =T82*100% -> 0.8
E83: de | F83: =F82+0.01 -> 1360.71 | I83: até | J83: 2268.05 | M83: O que exceder a | Q83: 1360.7 | T83: multiplica-se por | X83: 0.5 | Z83: =X83*100% -> 0.5 | AB83: e soma-se a | AE83: 1088.56
E84: acima de | G84: =J83 -> 2268.05 | M84: O valor da parcela será de | S84: 1542.24 | V84: invariavelmente
E88: Tabela de salário família
E89: Faixa Salarial | I89: Valor da cota por filho menor de 14 anos
E90: até | F90: 806.8 | I90: 41.37
E91: até | F91: 1212.64 | I91: 29.16
E95: Valor do Salário Mínimo: | K95: 880
E100: Dados do Sindicato | AB100: Data Base da categoria
E101: Nome Fantasia: | I101: FECOMERCIÁRIOS
E102: Razão Social: | I102: Federação dos Empregados no Comércio do Estado de São Paulo | AB102: Dia | AD102: Mês
E103: Endereço completo: | J103: Rua dos Pinheiros, nº 20 - Pinheiros | AB103: 1 | AD103: 9
E104: Telefones: | H104: (11) 3060 6600 | O104: Site: | P104: www.fecomerciarios.org.br
E105: E-mail:
E109: Informação/Nota do rodapé
E110: Obs. Cálculo baseado nas informações digitadas pelo usuário do site, podendo haver diferenças.
D114: Cálculo básico de rescisão de contrato de trabalho e seguro desemprego
D115: Desenvolvido pro: Acácio Júnior - adm@sincomerciarios.org.br
